Cogmind - Beta 14 @@@ ROGUE MODE // 2024.08.22 @ 17:44:46 Player: Olafz Result: Destroyed by S-27 Virus with Autogun Performance ------------- Evolutions (4) 2000 Regions Visited (7) 1400 Robots Destroyed (81) 405 Value Destroyed (3295) 3295 Prototype IDs (1) 20 Alien Tech Used (0) 0 Bonus (985) 985 TOTAL SCORE: 8105 Bonus ------- High Alert Combat Kills 285 Entered Garrisons 200 Used RIF Installer 500 Cogmind --------- Core Integrity 0/850 Matter 202/300 Energy 265/265 System Corruption 18% Temperature Cool (0) Movement Hovering (100) Ox1 Location -6/Factory Parts ------- > --- POWER (1) -------- Improved Ion Engine > --- PROPULSION (4) --- Cooled Aerolev Unit Cooled Aerolev Unit Gyrokinetic Inverter > --- UTILITY (8) ------ Machine Analyzer Core Analyzer Advanced System Shield High-powered Tractor Beam > --- WEAPON (2) ------- Coil Gun > --- INVENTORY (5) ---- Carbon-fiber Leg ECM Suite Relay Coupler [NC] (28) Mining Claw Peak State ------------ > --- POWER ------------ Neutrino Core > --- PROPULSION ------- Airjet Gyrokinetic Inverter > --- UTILITY ---------- Small Storage Unit Large Storage Unit ECM Suite Hacking Suite Advanced System Shield Advanced System Shield > --- WEAPON ----------- Tesla Rifle KE Penetrator > --- INVENTORY -------- Improved Heat Sink Compact Matter Pod Improved Kinecellerator Relay Coupler [NC] Heavy Assault Rifle [Rating: 46] Favorites ----------- Power Light Nuclear Core Engine Improved Ion Engine Power Core Light Nuclear Core Propulsion Aluminum Leg Treads Light Treads Leg Aluminum Leg Hover Unit Gyrokinetic Inverter Utility Targeting Computer Device ECM Suite Storage Large Storage Unit Processor Targeting Computer Hackware Advanced System Shield Protection Improved Utility Shielding Weapon Flak Cannon Energy Gun Tesla Rifle Ballistic Gun KE Penetrator Ballistic Cannon Flak Cannon Launcher Grenade Launcher Slashing Weapon Mining Claw Build | -11 -10 -10 -9 -8 -8 -7 -6 ------- Run | Yrd Mat Min Mat Mat Gar Fac Fac Slots Evolved 8 | . . . 2 2 . 2 2 Power . | . . . . . . . . Propulsion 2 | . . . . 1 . 1 . Utility 6 | . . . 2 1 . 1 2 Weapon . | . . . . . . . . Parts Attached 78 | 6 2 6 7 3 21 14 19 Power 10 | 1 . 2 . 1 3 1 2 Engine 5 | 1 . 1 . 1 1 . 1 Core 5 | . . 1 . . 2 1 1 Reactor . | . . . . . . . . Propulsion 24 | 2 . 1 3 1 9 4 4 Treads 1 | . . . . . 1 . . Leg 18 | 2 . 1 3 1 7 2 2 Wheel . | . . . . . . . . Hover 5 | . . . . . 1 2 2 Flight . | . . . . . . . . Utility 22 | 1 2 . 2 1 1 8 7 Device 6 | . . . . . . 2 4 Storage 3 | 1 1 . . . . 1 . Processor 9 | . 1 . 2 . 1 2 3 Hackware 3 | . . . . . . 3 . Protection 1 | . . . . 1 . . . Artifact . | . . . . . . . . Weapon 22 | 2 . 3 2 . 8 1 6 Energy Gun 2 | . . . . . . 1 1 Energy Cannon . | . . . . . . . . Ballistic Gun 12 | 2 . 3 . . 5 . 2 Ballistic Cannon 4 | . . . 2 . 2 . . Launcher 3 | . . . . . 1 . 2 Special Weapon . | . . . . . . . . Impact Weapon . | . . . . . . . . Slashing Weapon 1 | . . . . . . . 1 Piercing Weapon . | . . . . . . . . Special Melee Weapon . | . . . . . . . . Unidentified Prototypes 1 | . . . . . . . 1 Corrupted Parts 5 | . . . . . . 3 2 System Corruption 37 | . . . . . . 24 13 Parts Lost 39 | . . 4 . 1 18 2 14 Power 6 | . . 1 . . 4 . 1 Propulsion 13 | . . 2 . 1 7 1 2 Utility 8 | . . . . . 2 . 6 Weapon 12 | . . 1 . . 5 1 5 Highest Loss Streak 11 | . . 4 . 1 11 1 10 To Critical Strikes . | . . . . . . . . Average Slot Usage (%) 79 | . 98 90 94 84 91 52 46 Engine 2 | . 14 7 . 6 2 . 1 Core 4 | . . 5 11 2 5 1 . Treads 1 | . . . . . 1 6 . Leg 16 | . 28 20 18 19 22 4 1 Hover 1 | . . . . . . . 12 Storage 8 | . 14 14 11 9 9 7 1 Processor 20 | . 12 14 31 27 25 14 7 Hackware 1 | . . . . . . . 8 Protection 2 | . . . . 2 7 . . Ballistic Gun 8 | . 28 26 . . 7 7 3 Ballistic Cannon 7 | . . . 21 18 8 5 . Peak Build Rating 46 | 6 7 10 19 22 26 46 43 Average Rating 20 | 4 6 8 18 20 22 20 30 On Entrance 14 | . 6 7 9 19 22 18 37 Naked Turns . | . . . . . . . . Heaviest Build 45 | 13 28 31 37 39 39 45 21 Greatest Support 35 | 20 20 20 20 30 35 20 30 Greatest Overweight (x) 7 | . 1 7 3 1 3 2 1 Average Overweight (x) . | . . 1 1 1 1 1 . Largest Inventory Capacity 15 | 8 15 15 15 15 15 15 8 Average Capacity 13 | 6 14 15 15 15 15 14 5 Most Carried 15 | 3 7 14 15 15 15 15 5 Average Carried 12 | 1 5 12 13 15 13 14 3 Final Capacity 15 | 8 15 15 15 15 15 8 5 Final Carried 15 | 3 6 14 15 15 13 5 4 Class Distribution -------------------- 63% | Mutant 33% | Scavenger-Mutant 3% | Hacker-Mutant Dominant Class ---------------- Mutant | -10/Materials Mutant | -10/Mines Mutant | -9/Materials Mutant | -8/Materials Scavenger-Mutant | -8/Garrison Mutant | -7/Factory Mutant | -6/Factory Resources | -11 -10 -10 -9 -8 -8 -7 -6 ----------- Run | Yrd Mat Min Mat Mat Gar Fac Fac Matter Collected 2546 | 107 62 251 395 211 855 188 477 Remotely 12 | . . . . . . . 12 Salvage Created 2140 | . . 231 380 156 632 211 530 Parts 140 | . . 16 27 19 52 11 15 Haulers Intercepted 1 | . . . . 1 . . . Recyclers Shooed 3 | . . . 1 . . . 2 Parts Field Recycled . | . . . . . . . . Retrieved Matter . | . . . . . . . . Parts Self-Destructed . | . . . . . . . . Prevented . | . . . . . . . . Kills | -11 -10 -10 -9 -8 -8 -7 -6 ------- Run | Yrd Mat Min Mat Mat Gar Fac Fac Combat Hostiles Destroyed 62 | . . 7 10 4 29 4 8 Melee 1 | . . . . . . . 1 Guns 20 | . . 7 . . 10 2 1 Cannons 33 | . . . 10 4 19 . . AOE 7 | . . . . . . 1 6 Classes Destroyed 14 | . . 2 6 2 2 . 2 Worker 7 | . . . 2 1 . 2 2 Builder 3 | . . . 1 2 . . . Tunneler 1 | . . . 1 . . . . Hauler 1 | . . . . 1 . . . Recycler 2 | . . . . . . . 2 Mechanic 1 | . . . . . . . 1 Watcher 4 | . . . 3 1 . . . Swarmer 21 | . . 3 . . 18 . . Grunt 21 | . . 4 5 2 3 2 5 Duelist 2 | . . . 2 . . . . Sentry 8 | . . . 3 1 4 . . Hunter 3 | . . . . 1 1 . 1 Programmer 6 | . . . . . 2 2 2 Behemoth 1 | . . . . . 1 . . Best Kill Streak 11 | . . 5 11 3 7 2 7 Combat Bots Only 7 | . . 5 3 2 7 2 5 Max Kills in Single Turn 2 | . . 1 2 1 2 2 2 Gunslinging . | . . . . . . . . Exploded 1 | . . . . . . 1 1 Melee 1 | . . . . . . . 1 Uniques/NPCs Destroyed . | . . . . . . . . Combat | -11 -10 -10 -9 -8 -8 -7 -6 -------- Run | Yrd Mat Min Mat Mat Gar Fac Fac Hostile Shots Fired 484 | . . 67 24 23 188 35 147 Missed 148 | . . 17 7 7 63 8 46 Damage Taken 5808 | . . 582 218 328 1938 508 2234 Core 1564 | . . 85 40 13 425 139 862 Absorbed by Shields . | . . . . . . . . Redirected to Shielding 68 | . . . . . 68 . . Core Remaining (%) 71 | 100 . 66 90 . 20 80 . Volleys Fired 235 | . 1 26 25 19 96 25 43 Largest 2 | . 2 2 2 2 2 1 2 Hottest 88 | . 40 43 88 88 88 65 65 Shots Fired 388 | . 2 42 50 38 184 26 46 Gun 184 | . 2 42 . . 87 26 27 Cannon 183 | . . . 50 38 95 . . Launcher 21 | . . . . . 2 . 19 Special . | . . . . . . . . Kinetic 349 | . 2 42 50 38 182 14 21 Thermal . | . . . . . . . . Explosive 21 | . . . . . 2 . 19 Electromagnetic 18 | . . . . . . 12 6 Robot Hit Streak 19 | . . 13 14 8 19 12 9 Robot Miss Streak 7 | . 2 4 7 4 6 1 5 Penetration Max 1 | . . . . . 1 . 1 Secondary Targets 1 | . . 1 . . . . . Max Gunslinging Chain 1 | . . 1 . . . . . Shots Hit Robots 249 | . . 28 43 33 92 22 31 Core Hits 225 | . . 14 51 33 86 8 33 Critical Kills 1 | . . . . . . . 1 Critical Parts Destroyed 4 | . . . . . 2 . 2 Critical Strikes 6 | . . . . . 2 1 3 Destroy 5 | . . . . . 2 . 3 Corrupt 1 | . . . . . . 1 . Melee Attacks 3 | . . . . . . . 3 Impact . | . . . . . . . . Slashing 3 | . . . . . . . 3 Piercing . | . . . . . . . . Sneak Attacks 1 | . . . . . . . 1 Combat Hostiles . | . . . . . . . . Follow-up Attacks . | . . . . . . . . Damage Inflicted 6584 | . . 340 887 605 2070 745 1937 Guns 2001 | . . 340 . . 669 585 407 Cannons 2823 | . . . 887 535 1401 . . Explosions 1581 | . . . . 70 . 142 1369 Melee 47 | . . . . . . . 47 Ramming 132 | . . . . . . 18 114 Kinetic 4429 | . . 340 887 535 2070 323 274 Thermal 423 | . . . . . . 142 281 Explosive 1158 | . . . . 70 . . 1088 Electromagnetic 395 | . . . . . . 262 133 Impact . | . . . . . . . . Slashing 47 | . . . . . . . 47 Piercing . | . . . . . . . . Highest Corruption 32 | . . . . . 2 32 18 Average Corruption 6 | . . . . . 1 10 16 Corruption Purged . | . . . . . . . . Corruption Blocked . | . . . . . . . . Effects 55 | . . . . . 18 11 26 Message Errors 9 | . . . . . 4 1 4 Matter Fused 8 | . . . . . 3 2 3 Heat Flow Errors 7 | . . . . . 3 . 4 Energy Discharges 7 | . . . . . 3 1 3 Parts Rejected 3 | . . . . . . . 3 Parts Fused 1 | . . . . . . 1 . Data Loss (minor) 9 | . . . . . 2 4 3 Data Loss (major) 2 | . . . . . . 1 1 Misfires 4 | . . . . . 2 1 1 Misdirections 3 | . . . . . . . 3 Weapon Failures 2 | . . . . . 1 . 1 Overload Shots . | . . . . . . . . Overflow Damage 102 | . . . . 12 . . 90 Projectiles . | . . . . . . . . Explosions 102 | . . . . 12 . . 90 Melee . | . . . . . . . . Knockbacks 60 | . . . 19 13 25 2 1 Impact 3 | . . . . . . 2 1 Kinetic 53 | . . . 19 13 21 . . Secondary 4 | . . . . . 4 . . Self-Inflicted Damage 442 | . . . . 89 . 107 246 Shots 10 | . . . . 1 . 3 6 Rammed 45 | . . . . . . 9 36 Targets Rammed 74 | . . . . . . 9 65 Kicked 29 | . . . . . . . 29 Crushed . | . . . . . . . . Highest Temperature 282 | . . 19 162 189 282 162 246 Average Temperature 55 | . . 9 54 57 58 78 77 Received Heat Transfer 1194 | . . 258 93 72 294 63 414 Effects 1 | . . . . . . . 1 Energy Bleed 1 | . . . . . . . 1 Siege Activations . | . . . . . . . . Robots Corrupted 1 | . . . . . . 1 . Combat Hostiles 1 | . . . . . . 1 . Parts Fried 1 | . . . . . . 1 . Impact Corruptions . | . . . . . . . . Robots Melted . | . . . . . . . . Combat Hostiles . | . . . . . . . . Parts Melted . | . . . . . . . . Heat Transferred 350 | . . . . . . 100 250 Parts Sabotaged . | . . . . . . . . Parts Stolen . | . . . . . . . . Parts Stripped . | . . . . . . . . Power Chain Reactions 1 | . . . . . . 1 . Alert | -11 -10 -10 -9 -8 -8 -7 -6 ------- Run | Yrd Mat Min Mat Mat Gar Fac Fac Peak Influence 966 | . 45 162 184 251 966 646 729 Initial 470 | . . 17 . 77 33 470 207 Average 370 | . 11 78 69 173 586 475 421 Maximum Alert Level 3 | . . . . 1 3 2 3 Low Security (%) 36 | 100 100 100 100 54 15 . . Level 1 13 | . . . . 45 7 . 56 Level 2 32 | . . . . . 31 100 39 Level 3 16 | . . . . . 45 . 4 Level 4 . | . . . . . . . . Level 5 . | . . . . . . . . High Security . | . . . . . . . . Max Security . | . . . . . . . . Squads Dispatched 3 | . . . 1 . . 2 . Investigation . | . . . . . . . . Extermination 2 | . . . . . . 2 . Reinforcement 1 | . . . 1 . . . . Assault . | . . . . . . . . Garrison . | . . . . . . . . Intercept . | . . . . . . . . Searches Triggered . | . . . . . . . . Construction Impeded . | . . . . . . . . Haulers Reinforced . | . . . . . . . . Active Scanning Responses . | . . . . . . . . Cargo Convoy Interrupts . | . . . . . . . . Stealth | -11 -10 -10 -9 -8 -8 -7 -6 --------- Run | Yrd Mat Min Mat Mat Gar Fac Fac Distress Signals 7 | . 2 . 2 . . . 3 Communications Jammed . | . . . . . . . . Distress Signals . | . . . . . . . . Times Spotted 83 | . 3 7 16 5 30 4 18 Peak Tracking Total 8 | . 4 5 6 3 8 2 6 Tactical Retreats 5 | . 1 . . . 1 . 3 Traps | -11 -10 -10 -9 -8 -8 -7 -6 ------- Run | Yrd Mat Min Mat Mat Gar Fac Fac Traps Triggered 7 | . . . . . 7 . . Indirectly . | . . . . . . . . Trap Hack Attempts . | . . . . . . . . Triggered . | . . . . . . . . Disarmed . | . . . . . . . . Reprogrammed . | . . . . . . . . Reused . | . . . . . . . . Traps Extracted . | . . . . . . . . Installed . | . . . . . . . . Triggered . | . . . . . . . . Machines | -11 -10 -10 -9 -8 -8 -7 -6 ---------- Run | Yrd Mat Min Mat Mat Gar Fac Fac Machines Disabled 37 | . . . . 1 3 12 21 Max in Single Turn 12 | . . . . 1 1 8 12 Garrison Relay 4 | . . . . . 4 . . Machines Repaired . | . . . . . . . . Machines Dismantled . | . . . . . . . . Machines Sabotaged . | . . . . . . . . Overloaded Fab Kills . | . . . . . . . . Hacking | -11 -10 -10 -9 -8 -8 -7 -6 --------- Run | Yrd Mat Min Mat Mat Gar Fac Fac Machines Accessed 2 | . . . . 1 1 . . Terminals 1 | . . . . . 1 . . Fabricators . | . . . . . . . . Repair Stations . | . . . . . . . . Recycling Units . | . . . . . . . . Scanalyzers . | . . . . . . . . Garrison Access 1 | . . . . 1 . . . Total Hacks 4 | . . . . 2 2 . . Successful 2 | . . . . 1 1 . . Failed 2 | . . . . 1 1 . . Catastrophic . | . . . . . . . . Database Lockouts . | . . . . . . . . Manual . | . . . . . . . . Terminals 2 | . . . . . 2 . . Fabricators . | . . . . . . . . Repair Stations . | . . . . . . . . Recycling Units . | . . . . . . . . Scanalyzers . | . . . . . . . . Garrison Access 2 | . . . . 2 . . . Terminal Hacks 1 | . . . . . 1 . . Emergency Access Points 1 | . . . . . 1 . . Fabricator Hacks . | . . . . . . . . Repair Station Hacks . | . . . . . . . . Recycling Unit Hacks . | . . . . . . . . Scanalyzer . | . . . . . . . . Garrison Access Hacks 1 | . . . . 1 . . . Unlock Access 1 | . . . . 1 . . . Unauthorized Hacks . | . . . . . . . . Terminals . | . . . . . . . . Fabricators . | . . . . . . . . Repair Stations . | . . . . . . . . Recycling Units . | . . . . . . . . Scanalyzers . | . . . . . . . . Garrison Access . | . . . . . . . . Data Cores Recovered . | . . . . . . . . Used . | . . . . . . . . Hacking Detections 1 | . . . . . 1 . . Full Trace Events . | . . . . . . . . Feedback Events . | . . . . . . . . Feedback Blocked . | . . . . . . . . Robot Schematics Acquired . | . . . . . . . . Robots Built . | . . . . . . . . Authchips . | . . . . . . . . Time . | . . . . . . . . Total Robot Build Rating . | . . . . . . . . Part Schematics Acquired . | . . . . . . . . Parts Built . | . . . . . . . . Authchips . | . . . . . . . . Time . | . . . . . . . . Total Part Build Rating . | . . . . . . . . Parts Repaired . | . . . . . . . . Time . | . . . . . . . . Parts Recycled . | . . . . . . . . Recycled Matter . | . . . . . . . . Retrieved Matter . | . . . . . . . . Retrieved Components . | . . . . . . . . Parts Scanalyzed . | . . . . . . . . Part Schematics Acquired . | . . . . . . . . Parts Damaged . | . . . . . . . . Bothacking | -11 -10 -10 -9 -8 -8 -7 -6 ------------ Run | Yrd Mat Min Mat Mat Gar Fac Fac Used RIF Installer 1 | . . . . . 1 . . Robots Hacked . | . . . . . . . . Non-combat . | . . . . . . . . Combat . | . . . . . . . . Robot Hacks Applied . | . . . . . . . . Relay Couplers Released 19 | . . . . . 19 . . Machine Destruction 19 | . . . . . 19 . . Fabnet Peak Effective % . | . . . . . . . . Robots Rewired . | . . . . . . . . Allies Hacked . | . . . . . . . . Hacks Repelled . | . . . . . . . . Allies | -11 -10 -10 -9 -8 -8 -7 -6 -------- Run | Yrd Mat Min Mat Mat Gar Fac Fac Total Allies . | . . . . . . . . Largest Group . | . . . . . . . . Highest-Rated Group . | . . . . . . . . Highest-Rated Ally . | . . . . . . . . Total Orders . | . . . . . . . . Ally Attacks . | . . . . . . . . Total Damage . | . . . . . . . . Kills . | . . . . . . . . Allies Corrupted . | . . . . . . . . Allies Melted . | . . . . . . . . Intel | -11 -10 -10 -9 -8 -8 -7 -6 ------- Run | Yrd Mat Min Mat Mat Gar Fac Fac Robot Analysis Total . | . . . . . . . . Derelict Logs Recovered . | . . . . . . . . Drone Launches . | . . . . . . . . Drone Recoveries . | . . . . . . . . Exploration | -11 -10 -10 -9 -8 -8 -7 -6 ------------- Run | Yrd Mat Min Mat Mat Gar Fac Fac Turns Passed 4965 | 62 205 523 540 433 1763 810 629 Spaces Moved 2331 | 48 106 202 193 190 711 299 582 Core 12 | 10 . 2 . . . . . Treads 367 | . . . . . 93 274 . Legs 1352 | 38 106 200 193 190 618 . 7 Wheels . | . . . . . . . . Hover 600 | . . . . . . 25 575 Flight . | . . . . . . . . Fastest Speed 48 | 50 120 190 190 190 120 61 48 Average Speed 171 | 105 185 219 225 190 199 231 69 Slowest Speed 400 | 120 190 400 330 190 330 320 130 Overloaded Moves . | . . . . . . . . Propulsion Burnouts . | . . . . . . . . Robots Hopped . | . . . . . . . . Cave-ins Triggered . | . . . . . . . . Exploration Rate (%) 26 | 4 21 58 24 20 70 7 11 Regions Visited 7 Branch Regions 1 Pre-discovered Areas . | . . . . . . . . Known Exits Taken 1 | . . . . 1 . . . Unknown Exits Taken 5 | 1 1 1 1 . . 1 . Scrap Searched 1 | . . 1 . . . . . Spaces Dug 7 | . . . . . 7 . . Terrain Destroyed 289 | . . . . 10 14 31 234 Melee . | . . . . . . . . Projectile 8 | . . . . . 1 . 7 AOE 281 | . . . . 10 13 31 227 Terrain Rammed . | . . . . . . . . Walls Destroyed . | . . . . . . . . Machines Disabled . | . . . . . . . . Actions | -11 -10 -10 -9 -8 -8 -7 -6 --------- Run | Yrd Mat Min Mat Mat Gar Fac Fac Total 2884 | 56 113 240 252 225 875 384 739 Wait 61 | . . 1 10 11 2 18 19 Move 2323 | 47 105 201 192 189 709 298 582 Hop . | . . . . . . . . Pick Up 39 | 3 3 6 8 1 10 3 5 Fast Attach 41 | 6 2 3 4 2 7 4 13 Attach 27 | . . . 1 . 10 10 6 Detach 14 | . 1 . . . 2 9 2 Swap 10 | . . 3 2 1 4 . . Drop 27 | . 1 . 10 2 5 8 1 Fire 235 | . 1 26 25 19 96 25 43 Melee 3 | . . . . . . . 3 Ram 36 | . . . . . . . 36 Kick 29 | . . . . . . . 29 Crush 9 | . . . . . . 9 . Escape Stasis 30 | . . . . . 30 . . Rewire . | . . . . . . . . Trap . | . . . . . . . . Miscellaneous . | . . . . . . . . Route ------- -11/Scrapyard -10/Materials -10/Mines -9/Materials -8/Materials (discovered 2 exits: [*Fac] / Gar) -8/Garrison (discovered 2 exits: [*Fac x2]) -7/Factory -6/Factory History --------- Turn | Location | Event 5 | -11/Scrapyard | Discovered new exit (range 16) 63 | -11/Scrapyard | Entered Materials 236 | -10/Materials | Discovered new exit (range 15) 268 | -10/Materials | Entered Mines 315 | -10/Mines | Build established: Mutant 385 | -10/Mines | Joined a pair of Derelicts in attacking an 0b10 outpost 597 | -10/Mines | Lost 4 parts (1p2n1w) 606 | -10/Mines | Discovered new exit (range 14) 791 | -10/Mines | Entered Materials 791 | -9/Materials | Evolved 2 slots: Utility x2 1241 | -9/Materials | Discovered new exit (range 19) 1331 | -9/Materials | Entered another Materials area 1331 | -8/Materials | Evolved 2 slots: Propulsion x1, Utility x1 1756 | -8/Materials | Discovered new exit (range 19) 1762 | -8/Materials | Identified exit to Garrison 1764 | -8/Materials | Entered Garrison 1838 | -8/Garrison | Garrison Relay disabled 1869 | -8/Garrison | Lost 3 parts (1p1n1w) 1962 | -8/Garrison | Garrison Relay disabled 2031 | -8/Garrison | Garrison Relay disabled 2158 | -8/Garrison | Build established: Scavenger-Mutant 2193 | -8/Garrison | Destroyed 7 combat bots 2324 | -8/Garrison | Triggered checkpoint 2368 | -8/Garrison | Installed Relay Interface Framework 2419 | -8/Garrison | Discovered new exit (range 5) 2460 | -8/Garrison | Triggered checkpoint 2550 | -8/Garrison | Garrison Relay disabled 2712 | -8/Garrison | Triggered checkpoint 2846 | -8/Garrison | Triggered checkpoint 2940 | -8/Garrison | Triggered checkpoint 3177 | -8/Garrison | Spotted B-75 Beast 3195 | -8/Garrison | Core integrity fell below 50% 3241 | -8/Garrison | Destroyed B-75 Beast 3269 | -8/Garrison | Lost 11 parts (2p5n2u2w) 3497 | -8/Garrison | Build established: Mutant 3500 | -8/Garrison | Discovered new exit (range 11) 3527 | -8/Garrison | Entered Factory 3527 | -7/Factory | Evolved 2 slots: Propulsion x1, Utility x1 4227 | -7/Factory | System corruption reached 10% 4243 | -7/Factory | System corruption reached 30% 4328 | -7/Factory | Discovered new exit (range 5) 4337 | -7/Factory | Entered another Factory area 4337 | -6/Factory | Evolved 2 slots: Utility x2 4435 | -6/Factory | System corruption reached 10% 4509 | -6/Factory | Core integrity fell below 50% 4541 | -6/Factory | Lost 10 parts (1p2n4u3w) 4721 | -6/Factory | Core integrity fell below 20% 4966 | -6/Factory | Destroyed by S-27 Virus with Autogun Last Messages --------------- R-10 Processor collects Wheel. Overheating: Energy bleed (-20). R-10 Processor collects Wheel. R-10 Processor collects Com. Wheel. U-05 Engineer lays Concrete. U-05 Engineer builds a Wall. U-05 Engineer lays Concrete. U-05 Engineer builds a Wall. Acquired 2 matter. System corrupted: Component data lost. U-05 Engineer builds a Wall. U-05 Engineer lays Concrete. >> Machine Analyzer network decryption results: DSF Access x1 Terminal x1 System corrupted: Matter fused (-10). W-25 Informer sends out distress signal. U-05 Engineer lays Concrete. Targeting Computer destroyed. System corrupted: ECM Suite rejected. Map ----- +----------------------------------------------------+ | # ## ## #????????"""????????? | | + ## ## ! #????????"""????????? | | # # # #????????"""????????? | | # # # ""T"" #???????????????????? | | # + + """"" #???????????????????? | | # # ##########???????????????????? | | ########## #? ! #???????????????????? | | # ##???# #? #???????????????????? | | ##### ## #???????????????????? | | ## # ## #???????????????????? | | # ## ## ## #???????????????????? | | ## ####### #" #???? ??????????????? | | # #??? #?????????????? | | # #??? +?????????????? | | +w #?? #?????????????? | | # #? #?????????????? | | # # #?????????????? | | ###+### # ### # #?????????????? | | #u ####??????????? | | # ; s# ???????????? | | # ! # """ # s #?????????????? | | # # """ #; #?????????????? | | # # """ ## ; #?????????????? | | # # ###s#;;;;" #?????????????? | | # # """ #! ! # #???????????? | | # # """ # @ # ????????? | | ########### """ # #? ?????????? | | #?????????# ? # ! #???? ???????????? | | #?????????#= ? # +????T??? ???????????? | | #?????????# ? # #?????????????????????? | | #####??????????##?### #?????????????????????? | | ????????????????????# """"#?????????????????????? | | ????????????????????# """"#?????????????????????? | | ????????????????????# """"#?????????????????????? | | ????????????????????# """"#?????????????????????? | | ????????????????????# """"??????????????????????? | | ????????????????????# """"??????????????????????? | | ????????????????????# ??????????????????????????? | | ????????????????????###??????????????????????????? | | ?????????????????????????????????????????????????? | | ?????????????????????????????????????????????????? | | ?????????????????????????????????????????????????? | | ?????????????????????????????????????????????????? | | ?????????????????????????????????????????????????? | | ?????????????????????????????????????????????????? | | ?????????????????????????????????????????????????? | | ?????????????????????????????????????????????????? | | ?????????????????????????????????????????????????? | | ?????????????????????????????????????????????????? | | ?????????????????????????????????????????????????? | +----------------------------------------------------+ Best States ------------- Heat Dissipation 51 Energy Generation 19 Energy Capacity 315 Matter Stores 300 Matter Capacity 300 Sight Range 20 Terrain Scan Density 10 ECM Strength 1 Utility Shielding 66 Evasion (%) 55 Targeting Accuracy 10 Melee Accuracy 6 Target Analysis 5 Core Analysis 6 Recoil Reduction 1 Offensive Hacking 10 Defensive Hacking 28 Item Schematics ----------------- None Robot Schematics ------------------ None Fabricated ------------ Nothing Alien Tech Used ----------------- None Achievements -------------- None Challenges ------------ None Game ------ Seed MetaUtilityLegs Manual? 0 Play Time 00:36:12 Cumulative 240.5 hours Start 2024.08.22 @ 17:08:17 End 2024.08.22 @ 17:44:46 Sessions 1 Manual Loads 0 Difficulty Rogue Special Mode None Game No. 422 Rogue 420 Adventurer 2 Explorer 0 Win Type - Total 10 Types 8/0/0/2/0/0/0/0/0 Lore% 73 Gallery% 68 Achievement% 56 Wizard Run 0 Options --------- Layout 0 ASCII 0 Keyboard 1 Movement Numpad Keybinds 1 Fullscreen 2 Font 18/SmallcapsGlow Map View 76x50 Zoom Use 0% Tactical HUD 1 Map Filters NONE Filters NONE Steam 1 RUN: 57b97ca6-c127-406a-9a48-11dfb20cdff8